bitfinex/quotes_SOLUSD_20241107
["timestamp","ask_amount","ask_price","bid_price","bid_amount"]
[1730937601539,0.12549,186.65,186.54,9.91970694]
[1730937601711,0.12549,186.65,186.53,9.91970694]
[1730937602210,0.12549,186.65,186.54,20.0]
[1730937604324,23.776884,186.66,186.54,20.0]
[1730937604529,24.70807015,186.66,186.54,20.0]
[1730937604837,0.93118615,186.66,186.56,29.91970694]
[1730937605016,6.2727,186.67,186.56,29.91970694]
[1730937605212,0.12549,186.66,186.56,20.0]
[1730937605540,6.2727,186.67,186.56,20.0]
[1730937605725,16.5156,186.69,186.58,9.91970694]
[1730937605927,16.5156,186.69,186.59,20.0]
[1730937606234,16.5156,186.69,186.59,29.91970694]
[1730937606440,6.6586,186.71,186.6,9.91970694]
[1730937606637,16.5573,186.74,186.63,45.38970694]
[1730937606944,6.6586,186.77,186.65,20.0]
[1730937607119,6.6586,186.77,186.63,35.47]
[1730937607120,6.6586,186.77,186.67,20.0]
[1730937607656,6.6586,186.77,186.67,29.91970694]
[1730937608153,5.58528586,186.81,186.7,9.91970694]
[1730937608327,6.6586,186.82,186.72,9.91970694]
[1730937608529,6.6586,186.82,186.73,29.91970694]
[1730937608836,16.5573,186.84,186.73,9.91970694]
[1730937609327,16.5573,186.84,186.73,15.46636411]
[1730937609642,0.12549,186.83,186.73,15.46636411]
[1730937609843,16.5573,186.84,186.73,15.46636411]
[1730937610045,23.776884,186.83,186.73,15.46636411]
[1730937610350,9.2822,186.87,186.76,15.46636411]
[1730937610647,6.0422,186.87,186.76,15.46636411]
[1730937610846,0.12549,186.86,186.76,15.46636411]
[1730937611152,6.0422,186.87,186.75,20.0]
[1730937611455,0.12549,186.86,186.75,20.0]
[1730937611635,6.0422,186.87,186.75,20.0]
[1730937611839,6.0422,186.87,186.76,20.0]
[1730937612246,0.12549,186.86,186.76,20.0]
[1730937613228,23.902374,186.86,186.76,20.0]
[1730937613727,23.902374,186.86,186.75,20.0]
[1730937614835,23.902374,186.86,186.74,15.46636411]
[1730937614836,23.902374,186.86,186.76,15.46636411]
[1730937615149,23.902374,186.86,186.77,20.0]
[1730937616141,23.902374,186.86,186.74,35.46636411]
[1730937617223,23.902374,186.86,186.75,15.46636411]
[1730937617424,23.902374,186.86,186.74,20.0]
[1730937617425,23.902374,186.86,186.76,35.46636411]
[1730937617654,6.0422,186.87,186.78,20.0]
[1730937618426,0.12549,186.86,186.78,20.0]
[1730937618840,0.12549,186.86,186.76,20.0]
[1730937619225,0.12549,186.86,186.75,20.0]
[1730937619427,23.902374,186.86,186.74,35.46636411]
[1730937619961,23.902374,186.86,186.74,20.0]
[1730937620330,23.902374,186.86,186.74,35.46636411]
[1730937620530,23.902374,186.86,186.74,20.0]
[1730937620727,0.12549,186.86,186.77,15.46636411]
[1730937621255,0.12549,186.86,186.76,20.0]
[1730937622361,6.0422,186.87,186.78,20.0]
[1730937622563,23.776884,186.86,186.73,21.87946411]
[1730937622860,0.12549,186.85,186.74,20.0]
[1730937623673,0.12549,186.85,186.71,15.4046]
[1730937625075,0.12549,186.85,186.72,20.0]
[1730937626081,23.902374,186.83,186.66,16.345]
[1730937626577,23.902374,186.83,186.66,31.81136411]
[1730937626778,23.902374,186.83,186.68,15.46636411]
[1730937627284,23.902374,186.83,186.68,20.0]
[1730937628172,23.902374,186.83,186.71,20.0]
[1730937628683,23.902374,186.83,186.7,35.46636411]
[1730937628858,23.902374,186.83,186.72,20.0]
[1730937629058,0.12549,186.83,186.72,35.46636411]
[1730937629367,6.0422,186.87,186.75,35.46636411]
[1730937629566,15.3336,186.88,186.78,20.0]
[1730937630074,0.92504755,186.95,186.85,35.46636411]
[1730937630278,0.92504755,186.95,186.87,15.46636411]
[1730937630591,0.92504755,186.95,186.88,20.0]
[1730937630763,21.9744,186.99,186.88,20.0]
[1730937630958,0.12549,186.98,186.88,20.0]
[1730937631566,23.776884,186.98,186.87,20.0]
[1730937632562,0.12549,186.97,186.87,20.0]
[1730937633188,0.12549,186.97,186.83,20.0]
[1730937633365,0.12549,186.97,186.85,20.0]
[1730937633977,0.12549,186.97,186.37,33.57627189]
[1730937633978,0.12549,186.97,186.77,26.2986]
[1730937634186,0.12549,186.97,186.77,20.0]
[1730937634187,23.776884,186.94,186.77,20.0]
[1730937634486,0.12549,186.91,186.72,21.409727]
[1730937634670,0.1,186.9,186.71,6.2986]
[1730937635184,44.002374,186.91,186.68,47.21156411]
[1730937635372,44.002374,186.91,186.68,40.63133317]
[1730937635690,43.902374,186.91,186.69,24.75873317]
[1730937635987,43.902374,186.91,186.7,24.75873317]
[1730937636183,23.902374,186.91,186.72,24.75873317]
[1730937636389,23.902374,186.91,186.75,44.75873317]
[1730937636571,23.902374,186.91,186.76,20.0]
[1730937637085,23.902374,186.91,186.71,20.0]
[1730937638397,23.902374,186.91,186.71,24.75873317]
[1730937638587,23.902374,186.91,186.72,20.0]
[1730937639196,23.902374,186.91,186.7,24.75873317]
[1730937639500,0.12549,186.89,186.68,15.8726]
[1730937639801,23.902374,186.89,186.68,15.8726]
[1730937640001,23.902374,186.89,186.68,40.63133317]
[1730937640373,23.902374,186.89,186.69,24.75873317]
[1730937640580,23.902374,186.89,186.7,20.0]
[1730937640979,0.12549,186.87,186.7,20.0]
[1730937641185,23.902374,186.87,186.7,20.0]
[1730937641373,6.618,186.88,186.71,44.75873317]
[1730937641575,6.618,186.88,186.73,20.0]
[1730937641790,0.12549,186.87,186.73,20.0]
[1730937642398,6.618,186.88,186.76,24.75873317]
[1730937642575,6.618,186.88,186.73,0.1]
[1730937642576,6.618,186.88,186.77,44.75873317]
[1730937643207,0.12549,186.87,186.77,44.75873317]
[1730937643389,15.7009,186.92,186.8,24.75873317]
[1730937643775,15.7009,186.92,186.81,44.75873317]
[1730937643977,15.7009,186.92,186.81,20.0]
[1730937644190,0.12549,186.91,186.81,20.0]
[1730937644397,0.12549,186.91,186.8,24.75873317]
[1730937644600,0.12549,186.91,186.82,24.75873317]
[1730937644776,15.7009,186.92,186.82,24.75873317]
[1730937645521,6.4322,186.93,186.83,20.0]
[1730937645811,5.55512819,186.95,186.85,24.75873317]
[1730937645981,15.7701,186.97,186.86,24.75873317]
[1730937646305,6.1376,186.98,186.88,24.75873317]
[1730937646601,0.12549,186.97,186.89,24.75873317]
[1730937646809,6.1376,186.98,186.89,24.75873317]
[1730937647007,6.1376,186.98,186.84,44.85873317]
[1730937647008,21.6975,187.03,186.92,24.75873317]
[1730937647193,0.12549,187.02,186.91,24.75873317]
[1730937647591,0.12549,187.02,186.9,24.75873317]
[1730937647795,21.6975,187.03,186.9,24.75873317]
[1730937648300,21.6975,187.03,186.9,20.0]
[1730937648511,21.6975,187.03,186.92,24.75873317]
[1730937649103,21.6975,187.03,186.89,24.75873317]
[1730937649301,0.12549,187.02,186.9,20.0]
[1730937649606,0.12549,187.02,186.9,44.75873317]
[1730937649794,23.902374,187.02,186.9,44.75873317]
[1730937650375,23.902374,187.02,186.86,6.2582]
[1730937650376,23.902374,187.02,186.89,20.0]
[1730937651010,23.902374,187.02,186.88,44.75873317]
[1730937651394,23.902374,187.0,186.88,44.75873317]
[1730937651718,23.902374,187.0,186.9,44.75873317]
[1730937652625,0.12549,187.0,186.9,44.75873317]
[1730937652915,1.05021677,187.02,186.9,44.75873317]
[1730937653118,1.05021677,187.02,186.91,24.75873317]
[1730937653501,1.05021677,187.02,186.89,20.0]
[1730937653691,1.05021677,187.02,186.89,44.75873317]
[1730937653895,0.12549,187.0,186.89,44.75873317]
[1730937654208,0.12549,187.0,186.88,24.75873317]
[1730937654514,0.12549,187.0,186.89,20.0]
[1730937654702,0.12549,187.0,186.9,20.0]
[1730937655728,0.12549,187.0,186.89,20.0]
[1730937656316,0.12549,187.0,186.89,24.75873317]
[1730937656514,0.12549,187.0,186.9,20.0]
[1730937656702,0.92472677,187.02,186.9,44.75873317]
[1730937656903,23.902374,187.02,186.9,44.75873317]
[1730937657102,23.902374,187.02,186.87,20.0]
[1730937657294,23.902374,187.02,186.87,44.75873317]
[1730937657530,23.902374,187.02,186.89,24.75873317]
[1730937657730,29.45466674,187.02,186.9,20.0]
[1730937658030,29.45466674,187.02,186.84,24.75873317]
[1730937658203,23.776884,187.0,186.82,96.3]
[1730937658397,0.12549,186.99,186.82,121.05873317]
[1730937659736,0.12549,186.99,186.83,24.75873317]
[1730937660117,0.12549,186.99,186.84,20.0]
[1730937660509,0.12549,186.99,186.83,20.0]
[1730937661003,6.5521,186.98,186.8,16.0888]
[1730937661213,23.902374,186.97,186.8,16.0888]
[1730937661731,23.902374,186.97,186.8,40.84753317]
[1730937662231,23.902374,186.97,186.8,16.0888]
[1730937662431,23.902374,186.95,186.81,20.0]
[1730937663429,23.902374,186.95,186.81,44.75873317]
[1730937663732,16.0005,186.96,186.84,20.0]
[1730937664318,16.0005,186.96,186.83,20.0]
[1730937664520,0.12549,186.95,186.83,20.0]
[1730937664704,0.12549,186.95,186.84,24.75873317]
[1730937665115,23.902374,186.95,186.86,20.0]
[1730937665311,6.5521,186.98,186.87,24.75873317]
[1730937665515,6.5521,186.98,186.89,20.0]
[1730937665911,0.12549,186.97,186.89,20.0]
[1730937666238,6.5521,186.98,186.88,20.0]
[1730937666415,0.12549,186.97,186.88,20.0]
[1730937666742,23.902374,186.97,186.88,20.0]
[1730937667133,6.5521,186.98,186.88,20.0]
[1730937667329,0.12549,186.97,186.88,20.0]
[1730937667530,0.12549,186.97,186.86,20.0]
[1730937667838,0.12549,186.97,186.84,20.0]
[1730937668143,0.12549,186.97,186.83,24.75873317]
[1730937668144,5.67508709,186.97,186.81,24.75873317]
[1730937668433,0.12549,186.95,186.82,24.75873317]
[1730937668846,0.12549,186.95,186.8,40.84753317]
[1730937669012,0.12549,186.95,186.8,16.0888]
[1730937669729,0.1,186.92,186.72,1.67061169]
[1730937669928,0.12549,186.89,186.71,6.1546]
[1730937670130,0.12549,186.89,186.71,30.91333317]
[1730937670644,0.12549,186.89,186.65,15.5938]
[1730937670816,23.776884,186.83,186.65,24.75873317]
[1730937671125,23.776884,186.81,186.66,24.75873317]
[1730937671438,23.776884,186.81,186.57,21.4412]
[1730937671439,0.1,186.76,186.57,21.4412]
[1730937671637,20.0,186.78,186.57,46.19993317]
[1730937671638,0.12549,186.73,186.57,46.19993317]
[1730937671849,0.12549,186.73,186.59,24.75873317]
[1730937672039,0.12549,186.73,186.6,24.75873317]
[1730937672210,0.12549,186.73,186.57,21.4412]
[1730937672211,0.12549,186.73,186.61,24.75873317]
[1730937672721,0.12549,186.73,186.62,24.75873317]
[1730937673035,0.12549,186.73,186.61,24.75873317]
[1730937673245,0.12549,186.73,186.62,20.0]
[1730937673739,0.12549,186.73,186.61,20.0]
[1730937674116,0.12549,186.73,186.6,24.75873317]
[1730937674417,0.12549,186.73,186.61,20.0]
[1730937675033,0.12549,186.73,186.6,44.75873317]
[1730937675213,0.12549,186.73,186.62,20.0]
[1730937675413,0.12549,186.73,186.63,24.75873317]
[1730937677139,0.12549,186.73,186.62,24.75873317]
[1730937677339,0.12549,186.73,186.63,20.0]
[1730937677527,0.12549,186.73,186.64,24.75873317]
[1730937677839,0.12549,186.73,186.65,20.0]
[1730937678524,0.12549,186.73,186.63,24.75873317]
[1730937678722,0.12549,186.73,186.64,20.0]
[1730937680045,0.12549,186.73,186.61,24.75873317]
[1730937680246,0.12549,186.73,186.63,24.75873317]
[1730937680539,0.12549,186.73,186.64,24.75873317]
[1730937680860,0.12549,186.73,186.65,24.75873317]
[1730937681136,0.12549,186.73,186.58,21.0712617]
[1730937681319,0.12549,186.73,186.62,20.0]
[1730937681520,0.12549,186.73,186.62,44.75873317]
[1730937681832,0.12549,186.73,186.61,24.75873317]
[1730937682025,0.12549,186.73,186.62,20.0]
[1730937682424,0.12549,186.73,186.59,24.75873317]
[1730937682616,0.12549,186.73,186.58,24.75873317]
[1730937682821,23.902374,186.71,186.54,31.28383317]
[1730937683616,182.302374,186.71,186.54,24.75873317]
[1730937683843,182.302374,186.71,186.53,24.75873317]
[1730937684051,182.302374,186.71,186.54,24.75873317]
[1730937684339,182.302374,186.71,186.53,24.75873317]
[1730937684550,23.902374,186.71,186.53,24.75873317]
[1730937685233,23.902374,186.71,186.54,24.75873317]
[1730937685629,23.902374,186.71,186.55,44.75873317]
[1730937686147,23.902374,186.71,186.56,24.75873317]
[1730937686322,23.902374,186.71,186.59,20.0]
[1730937686855,23.902374,186.71,186.58,20.0]
[1730937687036,22.2508,186.72,186.6,20.0]
[1730937687239,22.2508,186.72,186.6,44.75873317]
[1730937687436,0.12549,186.71,186.6,44.75873317]
[1730937688449,23.902374,186.71,186.6,44.75873317]
[1730937689441,23.902374,186.71,186.61,24.75873317]
[1730937689764,0.92010397,186.76,186.65,44.75873317]
[1730937689932,0.92010397,186.76,186.66,44.75873317]
[1730937690257,22.899,186.77,186.59,15.0943]
[1730937690258,22.6185,186.82,186.68,44.75873317]
[1730937690563,0.91989914,186.8,186.7,24.75873317]
[1730937690727,22.6185,186.82,186.69,24.75873317]
[1730937690928,28.16543762,186.82,186.69,24.75873317]
[1730937691748,0.12549,186.81,186.7,24.75873317]
[1730937691954,28.16543762,186.82,186.71,20.0]
[1730937692149,23.776884,186.81,186.71,20.0]
[1730937692329,0.12549,186.8,186.71,20.0]
[1730937692533,11.76103762,186.82,186.72,24.75873317]
[1730937692839,6.2141,186.82,186.71,20.0]
[1730937693356,0.12549,186.81,186.7,15.9275]
[1730937693542,0.12549,186.81,186.69,20.0]
[1730937693751,0.12549,186.81,186.68,6.5959]
[1730937693937,0.12549,186.81,186.69,44.75873317]
[1730937694339,23.902374,186.81,186.69,44.75873317]
[1730937694647,23.902374,186.81,186.7,24.75873317]
[1730937694852,23.902374,186.81,186.71,24.75873317]
[1730937695231,6.2141,186.82,186.72,24.75873317]
[1730937696151,0.12549,186.81,186.72,24.75873317]
[1730937696861,0.12549,186.81,186.72,20.0]
[1730937697033,0.12549,186.81,186.71,20.0]
[1730937697236,0.12549,186.81,186.71,44.75873317]
[1730937698178,0.91898972,186.83,186.73,24.75873317]
[1730937698362,6.5239,186.86,186.76,20.0]
[1730937698562,0.12549,186.85,186.76,20.0]
[1730937698776,6.5239,186.86,186.76,20.0]
[1730937699080,6.5239,186.86,186.75,24.75873317]
[1730937699272,0.12549,186.85,186.76,20.0]
[1730937700182,0.12549,186.85,186.76,24.75873317]
[1730937700356,0.12549,186.87,186.76,24.75873317]
[1730937700556,23.902374,186.87,186.75,40.41193317]
[1730937700768,23.902374,186.87,186.76,44.75873317]
[1730937700979,23.902374,186.87,186.76,20.0]
[1730937701184,23.902374,186.88,186.76,20.0]
[1730937702055,23.902374,186.88,186.76,44.75873317]
[1730937702282,23.902374,186.88,186.72,20.0]
[1730937703081,23.902374,186.88,186.68,6.5959]
[1730937703082,0.12549,186.84,186.68,6.5959]
[1730937703380,23.776884,186.82,186.68,31.35463317]
[1730937703595,23.776884,186.82,186.7,24.75873317]
[1730937703756,15.9707,186.83,186.7,24.75873317]
[1730937703955,23.776884,186.82,186.7,24.75873317]
[1730937704179,0.12549,186.81,186.7,24.75873317]
[1730937704683,0.12549,186.81,186.71,20.0]
[1730937705386,6.0257,186.85,186.73,44.75873317]
[1730937705568,6.0257,186.85,186.69,20.0]
[1730937705569,6.0257,186.85,186.75,24.75873317]
[1730937705774,15.9707,186.88,186.75,24.75873317]
[1730937706292,0.12549,186.87,186.76,20.0]
[1730937706793,15.9707,186.88,186.77,24.75873317]
[1730937706964,15.9707,186.88,186.76,20.0]
[1730937707492,15.9707,186.88,186.77,24.75873317]
[1730937707673,0.12549,186.87,186.77,24.75873317]
[1730937707870,0.12549,186.87,186.76,44.75873317]
[1730937708568,0.12549,186.87,186.77,24.75873317]
[1730937709395,0.12549,186.87,186.76,44.75873317]
[1730937709974,5.54805138,186.9,186.79,44.75873317]
[1730937710293,16.12959129,186.93,186.79,44.75873317]
[1730937710294,0.12549,186.92,186.79,44.75873317]
[1730937710489,5.67791181,186.92,186.79,44.75873317]
[1730937710795,5.67791181,186.92,186.79,20.0]
[1730937711169,0.12549,186.9,186.79,20.0]
[1730937711378,0.12549,186.9,186.79,44.75873317]
[1730937711984,0.12549,186.9,186.79,20.0]
[1730937712397,5.55242181,186.92,186.8,24.75873317]
[1730937712598,0.91949129,186.93,186.82,24.75873317]
[1730937713289,0.12549,186.92,186.82,24.75873317]
[1730937714495,0.12549,186.92,186.81,44.75873317]
[1730937715002,0.12549,186.92,186.81,20.0]
[1730937715176,0.12549,186.92,186.8,6.0999]
[1730937715496,0.12549,186.92,186.77,24.75873317]
[1730937715497,0.12549,186.92,186.78,20.0]
[1730937716173,0.12549,186.92,186.78,24.75873317]
[1730937716380,0.12549,186.92,186.79,20.0]
[1730937717206,0.12549,186.92,186.79,24.75873317]
[1730937717383,0.12549,186.92,186.8,20.0]
[1730937718988,7.46096667,186.94,186.76,6.1965]
[1730937718989,7.46096667,186.94,186.82,20.0]
[1730937719279,7.46096667,186.94,186.83,24.75873317]
[1730937719505,7.46096667,186.94,186.82,44.75873317]
[1730937719805,0.12549,186.93,186.82,20.0]
[1730937720106,7.46096667,186.94,186.82,20.0]
[1730937720281,7.46096667,186.94,186.83,20.0]
[1730937720475,0.12549,186.93,186.83,20.0]
[1730937720904,23.902374,186.93,186.83,20.0]
[1730937721077,23.902374,186.93,186.81,20.0]
[1730937721804,23.902374,186.93,186.8,20.0]
[1730937722181,23.902374,186.93,186.8,24.75873317]
[1730937722514,23.902374,186.93,186.81,44.75873317]
[1730937722685,23.902374,186.93,186.81,20.0]
[1730937723086,23.902374,186.93,186.82,20.0]
[1730937724108,23.902374,186.93,186.8,20.0]
[1730937725015,23.902374,186.93,186.77,24.75873317]
[1730937725306,23.902374,186.93,186.76,6.1965]
[1730937725307,182.302374,186.93,186.76,6.1965]
[1730937725514,23.902374,186.91,186.76,6.1965]
[1730937725678,23.902374,186.89,186.74,1.61987762]
[1730937725885,23.902374,186.87,186.71,16.4732]
[1730937727116,23.902374,186.87,186.72,20.0]
[1730937727609,182.302374,186.87,186.71,16.4732]
[1730937727783,182.402374,186.87,186.69,6.6545]
[1730937727984,23.902374,186.85,186.69,6.6545]
[1730937728788,23.902374,186.83,186.65,6.1132]
[1730937729112,23.902374,186.81,186.65,6.1132]
[1730937730187,23.902374,186.81,186.66,20.0]
[1730937731306,23.902374,186.81,186.66,44.75873317]
[1730937731887,23.902374,186.81,186.67,24.75873317]
[1730937732104,158.4,186.82,186.68,20.0]
[1730937732314,22.2777,186.84,186.68,20.0]
[1730937732615,0.12549,186.83,186.68,20.0]
[1730937733013,0.12549,186.83,186.66,20.0]
[1730937733316,23.902374,186.83,186.66,20.0]
[1730937733510,23.902374,186.83,186.66,44.75873317]
[1730937733812,23.902374,186.83,186.68,44.75873317]
[1730937734201,23.902374,186.81,186.68,44.75873317]
[1730937734892,0.12549,186.81,186.68,44.75873317]
[1730937735326,23.902374,186.81,186.68,44.75873317]
[1730937736032,23.902374,186.81,186.66,20.0]
[1730937744522,23.902374,186.81,186.64,20.0]
[1730937744916,23.902374,186.79,186.64,20.0]
[1730937745232,182.302374,186.79,186.64,20.0]
[1730937746028,23.902374,186.77,186.64,20.0]
[1730937747006,23.902374,186.77,186.63,16.129]
[1730937748404,6.45609,186.75,186.57,15.6693]
[1730937748629,0.12549,186.73,186.57,15.6693]
[1730937749105,23.902374,186.69,186.52,15.6693]
[1730937749632,23.902374,186.69,186.53,15.50371487]
[1730937749832,23.902374,186.69,186.52,15.6693]
[1730937750020,23.902374,186.69,186.53,15.50371487]
[1730937750522,23.902374,186.69,186.52,15.6693]
[1730937750719,23.902374,186.69,186.53,20.0]
[1730937753433,23.902374,186.69,186.54,24.80463693]
[1730937753667,23.902374,186.69,186.53,20.0]
[1730937754308,0.91811221,186.68,186.53,20.0]
[1730937754514,23.902374,186.67,186.53,20.0]
[1730937756317,29.46582006,186.67,186.53,20.0]
[1730937759947,187.86582006,186.67,186.52,15.6693]
[1730937760451,0.12549,186.63,186.5,0.5803379]
[1730937760752,23.902374,186.63,186.5,0.5803379]
[1730937761855,0.12549,186.61,186.5,0.5803379]
[1730937762055,23.902374,186.59,186.5,0.5803379]
[1730937764569,0.12549,186.59,186.5,0.5803379]
[1730937765737,23.902374,186.59,186.5,0.5803379]
[1730937766757,23.902374,186.57,186.5,0.5803379]
[1730937770248,20.72799903,186.6,186.5,0.5803379]
[1730937770454,0.12549,186.59,186.5,0.5803379]
[1730937771358,23.902374,186.59,186.5,0.5803379]
[1730937771657,23.776884,186.57,186.5,0.5803379]
[1730937771837,0.12549,186.56,186.5,0.5803379]
[1730937773144,164.4082,186.58,186.5,0.5803379]
[1730937773344,6.0082,186.58,186.5,0.5803379]
[1730937773766,0.12549,186.57,186.5,0.5803379]
[1730937774556,23.902374,186.57,186.5,0.5803379]
[1730937774777,23.902374,186.55,186.5,0.5803379]
[1730937776857,0.92039197,186.56,186.5,0.5803379]
[1730937777261,20.72799903,186.6,186.5,0.5803379]
[1730937777489,6.535,186.62,186.5,0.5803379]
[1730937778153,0.12549,186.61,186.5,0.5803379]
[1730937778758,23.902374,186.61,186.5,0.5803379]
[1730937780482,6.48550268,186.63,186.52,15.51899236]
[1730937781055,0.12549,186.62,186.5,16.09933026]
[1730937781261,0.12549,186.62,186.51,15.51899236]
[1730937781477,23.902374,186.62,186.52,15.51899236]
[1730937781979,23.902374,186.62,186.51,15.51899236]
[1730937782182,23.902374,186.62,186.52,20.0]
[1730937783469,16.4847,186.65,186.52,20.0]
[1730937783470,23.776884,186.64,186.52,20.0]
[1730937783672,7.05507087,186.67,186.53,35.51899236]
[1730937783873,0.92147087,186.67,186.55,37.60449236]
[1730937784057,0.92147087,186.67,186.56,20.0]
[1730937784258,26.21792177,186.69,186.56,20.0]
[1730937785187,23.776884,186.68,186.56,20.0]
[1730937785479,0.12549,186.67,186.56,20.0]
[1730937785879,0.12549,186.67,186.55,15.9695]
[1730937786067,0.12549,186.67,186.5,6.9051379]
[1730937786068,0.12549,186.67,186.5,22.9523379]
[1730937786672,23.902374,186.65,186.5,22.9523379]
[1730937787590,23.902374,186.63,186.5,16.6275379]
[1730937788878,23.902374,186.63,186.51,20.0]
[1730937790972,23.902374,186.63,186.51,35.51899236]
[1730937792577,23.902374,186.63,186.52,15.51899236]
[1730937792775,23.902374,186.63,186.51,35.51899236]
[1730937793296,23.902374,186.63,186.52,15.51899236]
[1730937793596,6.1375,186.66,186.55,15.51899236]
[1730937793774,6.1375,186.66,186.54,20.0]
[1730937794290,0.12549,186.65,186.54,20.0]
[1730937795284,23.902374,186.65,186.54,20.0]
[1730937795890,0.12549,186.65,186.55,15.51899236]
[1730937796200,6.1375,186.66,186.55,15.51899236]
[1730937797373,0.12549,186.65,186.54,35.51899236]
[1730937797796,0.12549,186.65,186.54,20.0]
[1730937798216,23.902374,186.65,186.54,20.0]
[1730937802212,23.902374,186.65,186.53,20.0]
[1730937805016,29.46603321,186.65,186.53,15.51899236]
[1730937805213,29.46603321,186.65,186.54,20.0]
[1730937806116,29.46603321,186.65,186.51,35.51899236]
[1730937806907,29.46603321,186.65,186.52,15.51899236]
[1730937807115,29.46603321,186.65,186.51,20.0]
[1730937807426,29.46603321,186.65,186.5,22.9521379]
[1730937807999,29.46603321,186.65,186.51,15.51899236]
[1730937808228,29.46603321,186.65,186.5,22.9521379]
[1730937808609,29.46603321,186.65,186.51,20.0]
[1730937809532,187.86603321,186.65,186.51,20.0]
[1730937811201,23.902374,186.63,186.5,0.5803379]
[1730937815007,158.4,186.62,186.5,0.5803379]
[1730937815213,23.902374,186.59,186.5,0.5803379]
[1730937815438,182.302374,186.59,186.5,0.5803379]
[1730937815937,23.902374,186.57,186.5,0.5803379]
[1730937817535,182.302374,186.57,186.5,0.5803379]
[1730937819155,23.902374,186.55,186.5,0.5803379]
[1730937819316,23.902374,186.53,186.5,0.5803379]
[1730937820146,39.565174,186.51,186.37,5.56472273]
[1730937820331,39.565174,186.51,186.33,16.5762]
[1730937820536,0.12549,186.49,186.33,16.5762]
[1730937820848,23.902374,186.49,186.33,26.51224893]
[1730937821141,23.902374,186.49,186.34,9.93604893]
[1730937821524,3.95897425,186.48,186.33,16.5762]
[1730937821740,23.902374,186.47,186.34,20.0]
[1730937821931,23.902374,186.47,186.35,9.93604893]
[1730937822133,0.12549,186.45,186.36,20.0]
[1730937822318,0.12549,186.43,186.36,20.0]
[1730937822512,0.12549,186.41,186.36,20.0]
[1730937822714,0.12549,186.41,186.34,9.93604893]
[1730937822715,0.12549,186.41,186.35,29.93604893]
[1730937823146,0.12549,186.46,186.34,20.0]
[1730937823330,0.12549,186.44,186.34,35.53305056]
[1730937823650,0.12549,186.42,186.36,20.0]
[1730937824642,0.12549,186.46,186.35,15.53305056]
[1730937824815,0.12549,186.44,186.35,15.53305056]
[1730937825022,0.12549,186.44,186.36,20.0]
[1730937825362,0.12549,186.42,186.36,20.0]
[1730937825652,0.12549,186.42,186.35,20.0]
[1730937826026,0.12549,186.46,186.35,20.0]
[1730937826222,3.94730105,186.45,186.36,15.53305056]
[1730937826452,3.94730105,186.44,186.37,20.0]
[1730937826664,0.12549,186.47,186.37,20.0]
[1730937826967,0.12549,186.45,186.37,20.0]
[1730937827322,5.56551645,186.49,186.38,15.53305056]
[1730937827535,3.94227969,186.48,186.39,20.0]
[1730937827750,3.94232466,186.47,186.39,20.0]
[1730937827958,3.94232466,186.46,186.38,20.0]
[1730937828167,0.12549,186.44,186.38,20.0]
[1730937828672,6.92726401,186.52,186.4,20.0]
[1730937828880,3.94240695,186.5,186.4,35.53305056]
[1730937829046,3.94240695,186.49,186.4,20.0]
[1730937829373,3.94240695,186.48,186.4,20.0]
[1730937829568,6.0063,186.52,186.4,20.0]
[1730937829569,0.12549,186.49,186.4,20.0]
[1730937829722,0.12549,186.47,186.39,20.0]
[1730937829927,0.12549,186.47,186.38,6.0379]
[1730937830143,0.12549,186.45,186.38,6.0379]
[1730937831251,6.0063,186.52,186.39,20.0]
[1730937831252,23.902374,186.5,186.39,20.0]
[1730937831435,23.902374,186.5,186.39,35.53305056]